Cogmind - Beta 12 X2 @@@ ROGUE MODE // 2022.09.10 @ 19:03:37 Player: ArabianSandBoa Result: Self-destructed Performance ------------- Evolutions (2) 1000 Regions Visited (5) 1000 Robots Destroyed (10) 50 Value Destroyed (140) 140 Prototype IDs (0) 0 Alien Tech Used (0) 0 Bonus (0) 0 TOTAL SCORE: 2190 Bonus ------- None Cogmind --------- Core Integrity 466/550 Matter 300/300 Energy 100/100 System Corruption 0% Temperature Warm (117) Movement Rolling (150) Ox4 Location -8/Materials Parts ------- > --- POWER (1) -------- (None) > --- PROPULSION (2) --- Armored Wheel > --- UTILITY (6) ------ High-capacity Storage Unit Structural Scanner Advanced Visual Processing Unit Improved Terrain Scanner Terrain Scan Processor Seismic Detector > --- WEAPON (2) ------- Ion Cannon > --- INVENTORY (20) --- Light Ion Engine Light Ion Engine Wheel Wheel Wheel Wheel Wheel Wheel Wheel Wheel Compact Wheel Airjet Large Storage Unit High-capacity Storage Unit Seismic Detector Improved Light Armor Plating EM Pulse Gun Assault Rifle Mini Grenade Launcher Peak State ------------ > --- POWER ------------ Ion Engine > --- PROPULSION ------- Armored Wheel Armored Wheel > --- UTILITY ---------- High-capacity Storage Unit Structural Scanner Advanced Visual Processing Unit Improved Terrain Scanner Terrain Scan Processor Seismic Detector > --- WEAPON ----------- Field Laser Ion Cannon > --- INVENTORY -------- Light Ion Engine Light Ion Engine Wheel Wheel Wheel Wheel Wheel Wheel Wheel Wheel Compact Wheel Airjet Large Storage Unit High-capacity Storage Unit Seismic Detector EM Pulse Gun Assault Rifle Mini Grenade Launcher [Rating: 24] Favorites ----------- Power Ion Engine Engine Ion Engine Propulsion Armored Wheel Wheel Armored Wheel Utility Improved Terrain Scanner Device Improved Terrain Scanner Storage High-capacity Storage Unit Processor Terrain Scan Processor Weapon EM Pulse Gun Energy Gun EM Pulse Gun Energy Cannon Ion Cannon Ballistic Gun Assault Rifle Build | -11 -10 -10 -10 -9 -8 ------- Run | Scr Mat Min Exi Min Mat Slots Evolved 4 | . . . . . 4 Power . | . . . . . . Propulsion . | . . . . . . Utility 4 | . . . . . 4 Weapon . | . . . . . . Parts Attached 17 | 7 . . 2 . 8 Power 1 | 1 . . . . . Engine 1 | 1 . . . . . Core . | . . . . . . Reactor . | . . . . . . Propulsion 4 | 2 . . . . 2 Treads . | . . . . . . Leg . | . . . . . . Wheel 4 | 2 . . . . 2 Hover . | . . . . . . Flight . | . . . . . . Utility 8 | 2 . . 2 . 4 Device 3 | 1 . . . . 2 Storage 3 | 1 . . 2 . . Processor 2 | . . . . . 2 Hackware . | . . . . . . Protection . | . . . . . . Artifact . | . . . . . . Weapon 4 | 2 . . . . 2 Energy Gun 2 | 1 . . . . 1 Energy Cannon 1 | . . . . . 1 Ballistic Gun 1 | 1 . . . . . Ballistic Cannon . | . . . . . . Launcher . | . . . . . . Special Weapon . | . . . . . . Impact Weapon . | . . . . . . Slashing Weapon . | . . . . . . Piercing Weapon . | . . . . . . Special Melee Weapon . | . . . . . . Unidentified Prototypes . | . . . . . . Parts Lost 3 | . . . . . 3 Power 1 | . . . . . 1 Propulsion 1 | . . . . . 1 Utility . | . . . . . . Weapon 1 | . . . . . 1 Highest Loss Streak 3 | . . . . . 3 To Critical Strikes . | . . . . . . Average Slot Usage (%) 95 | . 100 100 100 100 89 Engine 11 | . 14 14 14 14 8 Wheel 23 | . 28 28 28 28 17 Device 18 | . 14 14 14 14 24 Storage 11 | . 14 14 14 14 9 Processor 5 | . . . . . 10 Energy Gun 11 | . 14 14 14 14 9 Energy Cannon 3 | . . . . . 8 Ballistic Gun 7 | . 14 14 14 14 . Naked Turns . | . . . . . . Heaviest Build 57 | 15 15 15 50 50 57 Greatest Support 26 | 26 26 26 26 26 26 Greatest Overweight (x) 4 | . . . 1 1 4 Average Overweight (x) . | . . . . 1 1 Largest Inventory Capacity 20 | 8 8 8 20 20 20 Average Capacity 14 | 7 8 8 11 20 20 Most Carried 19 | 8 8 8 10 10 19 Average Carried 10 | 4 8 8 8 10 15 Final Capacity 20 | 8 8 8 20 20 20 Final Carried 19 | 8 8 8 10 10 19 Class Distribution -------------------- 84% | Mutant 15% | Skirmisher Dominant Class ---------------- Mutant | -10/Materials Mutant | -10/Mines Mutant | -10/Exiles Mutant | -9/Mines Mutant | -8/Materials Resources | -11 -10 -10 -10 -9 -8 ----------- Run | Scr Mat Min Exi Min Mat Matter Collected 402 | 284 . 28 . 20 70 Remotely . | . . . . . . Salvage Created 327 | 142 . 18 . . 167 Parts 29 | 12 . 2 . . 15 Haulers Intercepted . | . . . . . . Recyclers Shooed 2 | 2 . . . . . Parts Field Recycled . | . . . . . . Retrieved Matter . | . . . . . . Parts Self-Destructed . | . . . . . . Prevented . | . . . . . . Kills | -11 -10 -10 -10 -9 -8 ------- Run | Scr Mat Min Exi Min Mat Combat Hostiles Destroyed 3 | . . 1 . . 2 Guns 1 | . . 1 . . . Cannons 2 | . . . . . 2 Classes Destroyed 6 | 3 . 1 . . 2 Worker 1 | 1 . . . . . Builder 3 | . . . . . 3 Tunneler 2 | 2 . . . . . Recycler 1 | 1 . . . . . Swarmer 1 | . . 1 . . . Grunt 2 | . . . . . 2 Best Kill Streak 2 | 2 . 1 . . 2 Combat Bots Only 2 | . . 1 . . 2 Max Kills in Single Turn 1 | 1 . 1 . . 1 Gunslinging . | . . . . . . Exploded . | . . . . . . Melee . | . . . . . . Uniques/NPCs Destroyed . | . . . . . . Combat | -11 -10 -10 -10 -9 -8 -------- Run | Scr Mat Min Exi Min Mat Damage Taken 477 | . 11 . . . 466 Core 84 | . . . . . 84 Absorbed by Shields . | . . . . . . Core Remaining (%) 100 | 100 . . . 100 . Volleys Fired 43 | 12 . 2 . . 29 Largest 2 | 2 . 2 . . 2 Hottest 123 | 60 . 60 . . 123 Shots Fired 79 | 24 . 4 . . 51 Gun 50 | 24 . 4 . . 22 Cannon 29 | . . . . . 29 Launcher . | . . . . . . Special . | . . . . . . Kinetic 14 | 12 . 2 . . . Thermal 51 | . . . . . 51 Explosive . | . . . . . . Electromagnetic 14 | 12 . 2 . . . Robot Hit Streak 7 | 7 . 1 . . 7 Robot Miss Streak 3 | 1 . 2 . . 3 Penetration Max . | . . . . . . Secondary Targets . | . . . . . . Shots Hit Robots 42 | 18 . 1 . . 23 Core Hits 15 | 5 . 1 . . 9 Critical Kills . | . . . . . . Critical Parts Destroyed . | . . . . . . Critical Strikes 1 | . . . . . 1 Burn 1 | . . . . . 1 Melee Attacks . | . . . . . . Impact . | . . . . . . Slashing . | . . . . . . Piercing . | . . . . . . Sneak Attacks . | . . . . . . Combat Hostiles . | . . . . . . Follow-up Attacks . | . . . . . . Damage Inflicted 685 | 227 . 11 . . 447 Guns 458 | 227 . 11 . . 220 Cannons 227 | . . . . . 227 Explosions . | . . . . . . Melee . | . . . . . . Ramming . | . . . . . . Kinetic 140 | 129 . 11 . . . Thermal 447 | . . . . . 447 Explosive . | . . . . . . Electromagnetic 98 | 98 . . . . . Impact . | . . . . . . Slashing . | . . . . . . Piercing . | . . . . . . Highest Corruption . | . . . . . . Average Corruption . | . . . . . . Corruption Purged . | . . . . . . Corruption Blocked . | . . . . . . Overload Shots . | . . . . . . Overflow Damage . | . . . . . . Projectiles . | . . . . . . Explosions . | . . . . . . Melee . | . . . . . . Knockbacks . | . . . . . . Impact . | . . . . . . Kinetic . | . . . . . . Secondary . | . . . . . . Self-Inflicted Damage . | . . . . . . Shots . | . . . . . . Rammed . | . . . . . . Targets Rammed . | . . . . . . Kicked . | . . . . . . Crushed . | . . . . . . Highest Temperature 306 | 20 . . . . 306 Average Temperature 93 | 20 . . . . 94 Received Heat Transfer 222 | . 6 . . . 216 Effects 2 | . . . . . 2 Interference 2 | . . . . . 2 Siege Activations . | . . . . . . Robots Corrupted . | . . . . . . Combat Hostiles . | . . . . . . Parts Fried 2 | 2 . . . . . Impact Corruptions . | . . . . . . Robots Melted . | . . . . . . Combat Hostiles . | . . . . . . Parts Melted 2 | . . . . . 2 Heat Transferred 925 | . . . . . 925 Parts Sabotaged . | . . . . . . Parts Stolen . | . . . . . . Parts Stripped . | . . . . . . Power Chain Reactions . | . . . . . . Missiles Intercepted . | . . . . . . Alert | -11 -10 -10 -10 -9 -8 ------- Run | Scr Mat Min Exi Min Mat Peak Influence 71 | 20 13 24 . . 71 Initial 13 | . 13 4 . . . Average 12 | 5 13 10 . . 17 Maximum Alert Level . | . . . . . . Low Security (%) 100 | 100 100 100 . 100 100 Level 1 . | . . . . . . Level 2 . | . . . . . . Level 3 . | . . . . . . Level 4 . | . . . . . . Level 5 . | . . . . . . High Security . | . . . . . . Max Security . | . . . . . . Squads Dispatched 2 | . . . . . 2 Investigation 1 | . . . . . 1 Extermination . | . . . . . . Reinforcement 1 | . . . . . 1 Assault . | . . . . . . Garrison . | . . . . . . Intercept . | . . . . . . Searches Triggered . | . . . . . . Construction Impeded . | . . . . . . Haulers Reinforced . | . . . . . . Active Scanning Responses . | . . . . . . Cargo Convoy Interrupts . | . . . . . . Stealth | -11 -10 -10 -10 -9 -8 --------- Run | Scr Mat Min Exi Min Mat Distress Signals 1 | . . . . . 1 Communications Jammed . | . . . . . . Distress Signals . | . . . . . . Times Spotted 14 | . 2 3 . . 9 Peak Tracking Total 6 | . . 3 . . 6 Tactical Retreats 1 | . . . . . 1 Traps | -11 -10 -10 -10 -9 -8 ------- Run | Scr Mat Min Exi Min Mat Traps Triggered . | . . . . . . Indirectly . | . . . . . . Trap Hack Attempts . | . . . . . . Triggered . | . . . . . . Disarmed . | . . . . . . Reprogrammed . | . . . . . . Reused . | . . . . . . Traps Extracted . | . . . . . . Installed . | . . . . . . Triggered . | . . . . . . Machines | -11 -10 -10 -10 -9 -8 ---------- Run | Scr Mat Min Exi Min Mat Machines Disabled . | . . . . . . Max in Single Turn . | . . . . . . Machines Sabotaged . | . . . . . . Overloaded Fab Kills . | . . . . . . Hacking | -11 -10 -10 -10 -9 -8 --------- Run | Scr Mat Min Exi Min Mat Machines Accessed 1 | . . . . . 1 Terminals 1 | . . . . . 1 Fabricators . | . . . . . . Repair Stations . | . . . . . . Recycling Units . | . . . . . . Scanalyzers . | . . . . . . Garrison Access . | . . . . . . Total Hacks 4 | . . . . . 4 Successful 1 | . . . . . 1 Failed 3 | . . . . . 3 Catastrophic 1 | . . . . . 1 Database Lockouts . | . . . . . . Manual 4 | . . . 4 . . Terminals 4 | . . . . . 4 Fabricators . | . . . . . . Repair Stations . | . . . . . . Recycling Units . | . . . . . . Scanalyzers . | . . . . . . Garrison Access . | . . . . . . Terminal Hacks 1 | . . . . . 1 Branch Access Points 1 | . . . . . 1 Fabricator Hacks . | . . . . . . Repair Station Hacks . | . . . . . . Recycling Unit Hacks . | . . . . . . Scanalyzer . | . . . . . . Garrison Access Hacks . | . . . . . . Unauthorized Hacks . | . . . . . . Terminals . | . . . . . . Fabricators . | . . . . . . Repair Stations . | . . . . . . Recycling Units . | . . . . . . Scanalyzers . | . . . . . . Garrison Access . | . . . . . . Data Cores Recovered . | . . . . . . Used . | . . . . . . Hacking Detections 1 | . . . . . 1 Full Trace Events 1 | . . . . . 1 Feedback Events . | . . . . . . Feedback Blocked . | . . . . . . Robot Schematics Acquired . | . . . . . . Robots Built . | . . . . . . Authchips . | . . . . . . Time . | . . . . . . Total Robot Build Rating . | . . . . . . Part Schematics Acquired . | . . . . . . Parts Built . | . . . . . . Authchips . | . . . . . . Time . | . . . . . . Total Part Build Rating . | . . . . . . Parts Repaired . | . . . . . . Time . | . . . . . . Parts Recycled . | . . . . . . Recycled Matter . | . . . . . . Retrieved Matter . | . . . . . . Retrieved Components . | . . . . . . Parts Scanalyzed . | . . . . . . Part Schematics Acquired . | . . . . . . Parts Damaged . | . . . . . . Bothacking | -11 -10 -10 -10 -9 -8 ------------ Run | Scr Mat Min Exi Min Mat Used RIF Installer . | . . . . . . Robots Hacked . | . . . . . . Non-combat . | . . . . . . Combat . | . . . . . . Robot Hacks Applied . | . . . . . . Relay Couplers Released . | . . . . . . Fabnet Peak Effective % . | . . . . . . Robots Rewired . | . . . . . . Allies Hacked . | . . . . . . Hacks Repelled . | . . . . . . Allies | -11 -10 -10 -10 -9 -8 -------- Run | Scr Mat Min Exi Min Mat Total Allies 1 | . . 1 . . . Largest Group 1 | . . 1 . . . Highest-Rated Group 31 | . . 31 . . . Highest-Rated Ally 31 | . . 31 . . . Total Orders . | . . . . . . Ally Attacks . | . . . . . . Total Damage . | . . . . . . Kills . | . . . . . . Allies Corrupted . | . . . . . . Allies Melted . | . . . . . . Intel | -11 -10 -10 -10 -9 -8 ------- Run | Scr Mat Min Exi Min Mat Robot Analysis Total . | . . . . . . Derelict Logs Recovered 3 | . . 2 . 1 . Drone Launches . | . . . . . . Drone Recoveries . | . . . . . . Exploration | -11 -10 -10 -10 -9 -8 ------------- Run | Scr Mat Min Exi Min Mat Turns Passed 1192 | 142 45 182 258 79 486 Spaces Moved 800 | 69 50 175 269 76 161 Core 2 | 2 . . . . . Treads . | . . . . . . Legs . | . . . . . . Wheels 798 | 67 50 175 269 76 161 Hover . | . . . . . . Flight . | . . . . . . Fastest Speed 50 | 50 90 90 90 105 105 Average Speed 98 | 89 90 90 94 105 118 Slowest Speed 150 | 100 90 90 105 105 150 Overloaded Moves . | . . . . . . Propulsion Burnouts . | . . . . . . Robots Hopped . | . . . . . . Cave-ins Triggered . | . . . . . . Exploration Rate (%) 32 | 5 20 56 67 28 18 Regions Visited 5 Branch Regions 3 Pre-discovered Areas 1 | . . 1 . . . Known Exits Taken . | . . . . . . Unknown Exits Taken 5 | 1 1 1 1 1 . Scrap Searched 2 | . . 1 . 1 . Spaces Dug 4 | . . . . . 4 Terrain Destroyed 9 | . . . . . 9 Melee . | . . . . . . Projectile 9 | . . . . . 9 AOE . | . . . . . . Terrain Rammed . | . . . . . . Walls Destroyed . | . . . . . . Machines Disabled . | . . . . . . Actions | -11 -10 -10 -10 -9 -8 --------- Run | Scr Mat Min Exi Min Mat Total 1115 | 123 49 195 272 75 401 Wait 235 | 20 . 19 . . 196 Move 795 | 68 49 174 268 75 161 Hop . | . . . . . . Pick Up 20 | 12 . . 1 . 7 Fast Attach 11 | 7 . . . . 4 Attach . | . . . . . . Detach . | . . . . . . Swap 6 | . . . 2 . 4 Drop 5 | 4 . . 1 . . Fire 43 | 12 . 2 . . 29 Melee . | . . . . . . Ram . | . . . . . . Kick . | . . . . . . Crush . | . . . . . . Escape Stasis . | . . . . . . Rewire . | . . . . . . Trap . | . . . . . . Miscellaneous . | . . . . . . Route ------- -11/Scrapyard -10/Materials -10/Mines (discovered 2 exits: [*Mat] / *Exi) -10/Exiles -9/Mines -8/Materials (discovered 1 exit: Fac) History --------- Turn | Location | Event 20 | -11/Scrapyard | Discovered new exit (range 16) 143 | -11/Scrapyard | Entered Materials 177 | -10/Materials | Discovered new exit (range 13) 188 | -10/Materials | Entered Mines 200 | -10/Mines | Met a Derelict bent on vengeance 225 | -10/Mines | Learned Materials stockpile data 234 | -10/Mines | Learned Materials terminal intel 313 | -10/Mines | Escorted by a lone wolf Derelict 315 | -10/Mines | Build established: Mutant 328 | -10/Mines | Discovered new exit (range 15) 334 | -10/Mines | Learned location of Storage (-7) 353 | -10/Mines | Deemed a non-threat by the Exiles lab entrance 353 | -10/Mines | Discovered new exit (range 5) 370 | -10/Mines | Entered Exiles 370 | -10/Exiles | Accompanied by 1 ally 393 | -10/Exiles | Met 8R-AWN 408 | -10/Exiles | Met EX-HEX 433 | -10/Exiles | Met EX-BIN 502 | -10/Exiles | Met EX-DEC 616 | -10/Exiles | Discovered new exit (range 14) 628 | -10/Exiles | Entered Mines 661 | -9/Mines | Found a hidden stash of uninstalled traps 700 | -9/Mines | Discovered new exit (range 8) 707 | -9/Mines | Entered Materials 707 | -8/Materials | Evolved 4 slots: Utility x4 708 | -8/Materials | Identified exit to Factory 710 | -8/Materials | Loaded intel: 12 terminal locations 1193 | -8/Materials | Self-destructed Last Messages --------------- 01142_ U-05 Engineer builds a Wall. 01170_ G-47 Trooper destroyed. 01177_ Slug penetrates Terminal. 01177_ Terminal disabled. 01182_ Imp. Heat Sink melted. 01182_ G-47 Trooper destroyed. 01183_ Overheating: System interference. 01183_ Structural Scanner temporarily disabled. 01183_ Penetrated by Slug. 01186_ Arm. Wheel destroyed. 01186_ Ion Engine destroyed. 01187_ R-06 Scavenger collects Lgt. Nuclear Core. 01187_ Acquired 10 matter. 01190_ Critical hit (Burn: +37). 01190_ Penetrated by Slug. 01191_ Slug penetrates Wall. 01192_ R-06 Scavenger collects Particle Gun. 01192_ Field Laser destroyed. 01193_ Slug penetrates G-47 Trooper. 01193_ G-47 Trooper knocked back. Map ----- +----------------------------------------------------+ | ??????????????#?##?####?######## # ! | | ????????#??##???####?########### ########## | | ??????????#????#??###?##########"########## | | ???????????#????######## ##?####### | | ??????#????#####?#?##### + | | ???????????##???#??## +! #######? # | | ?????????????#??##### ## ######## # | | ??????????#??##?#?### ## ######## # | | ????????#????????###T ## =######## # | | ????????##???????#### ## ### # | | ?????????????######## ##! ### # | | ?????????????#??##### ######+####### # | | ???????????##########+#### # | | ??????????#??#?### # # | | ?????????????##?## + T | | ???????#??######## # # | | ????????######??########## # | | ??????######??##### # # | | ????#???##???? ### # # | | ???????#?#?? ? ?## + # | | ?????#?###"""? ??## # #########+#### # | | ??????###??"?????## # ####### # # | | ??????###?""" ? ### [ # ## #?# ?"T"???? | | ???????###?"??? ########## ## ??# ??? ????? | | ???????#?#?? ?#;=g%=#### ## ? ?#????????? | | ?????##?##?"" ? #;@[h"### ? ##? ??????? | | ?????????#""?? ## r "##? /?? ## ???????? | | ?????? ??#""" ##!Y""###= ??###????????? | | ????? ???#?"? ## #### ##??##?????????? | | ???????? # ?? ## =#### ###???#?"""????? | | ?????"?"???? ? ## ! #### ###?#?# "T"????? | | ??????"??###????## #### #?##?##? ??????? | | ???????? #? ? ? # ###? ##??#??##??????? | | ???? ?"???? ?? ###H### ? ??##? ???????? | | ?????????# ?? ? ?? ? ##??#????????? | | ??????????? ??? ?? ?????T?????? | | ??????? #??? ??????# ???????? | | ?????????#?? ####### ##??? ???????? | | ???????? # ##############???????????? | | ???????? ####+###?#?#?#########???????????? | | ???????? # ??????#?#????????????????? | | ?????????#????? ? ??????#????????????????? | | ????????????"???????#??#????##????????????? | | ???????????"?" ??? ???????????????????????? | | ?????????????? ??"?#????? ???#????????????? | | ?????????????? ??? ?#??????? ?????????????? | | ????????????????? ????????????????????????? | | ??????????????? ????????#?????????????????? | | ??????????????????????????????????????????? | | ??????????????????????????????????????????? | +----------------------------------------------------+ Best States ------------- Heat Dissipation 31 Energy Generation 10 Energy Capacity 250 Matter Stores 300 Matter Capacity 300 Sight Range 20 Terrain Scan Range 16 Terrain Scan Density 85 Evasion (%) 42 Item Schematics ----------------- None Robot Schematics ------------------ None Fabricated ------------ Nothing Alien Tech Used ----------------- None Achievements -------------- None Challenges ------------ None Game ------ Seed MicrowarpRefineryNeutralizer Manual? 0 Play Time 00:14:01 Cumulative 295.6 hours Start 2022.09.10 @ 16:58:42 End 2022.09.10 @ 19:03:37 Sessions 1 Manual Loads 0 Difficulty Rogue Special Mode None Game No. 341 Rogue 341 Adventurer 0 Explorer 0 Win Type - Total 0 Types 0/0/0/0/0/0/0/0/0 Lore% 44 Gallery% 72 Achievement% 59 Wizard Run 0 Options --------- ASCII 0 Keyboard 0 Movement Mouse Keybinds 0 Fullscreen 2 Font 24/Smallcaps Map View 76x50 Tactical HUD 1 Map Filters NONE Filters NONE Steam 1 RUN: de3b7a1a-1ee1-42a2-9194-64780e23dcad